Workbook

Sheet PRODUCTION
B1: DELTAFORCE produktie | C1: Samenstelling van de te produceren produkten
H2: 28-08-2025 | J2: Selecteer een type. Je kunt het plaatsen waar je wilt. De winst verschijnt als de verkoopprijs is ingevuld. Het pad naar de afbeeldingen kun je opgeven in het werkblad Lijsten in veld B183
M3: Totaal
M4: =SUM(J6:M6) -> 368464.5
J5: CYBER WARFARE DIVISION | K5: WORKBENCH | L5: PHARMACY | M5: AMOR BENCH
J6: =SUMIF(TYPE,"OC",WINST) -> 30398 | K6: =SUMIF(TYPE,"OW",WINST) -> 194735.5 | L6: =SUMIF(TYPE,"OP",WINST) -> 22006 | M6: =SUMIF(TYPE,"OA",WINST) -> 121325
A7: Onderdeel | B7: Product | C7: J/N | D7: Samengesteld uit: | E7: Aantal | F7: Inkoopprijs | G7: Relatieve inkoopprijs | H7: =MAX(H8:H47) -> 4 | I7: Type | J7: Produkt | L7: Inkoop prijs | M7: Verkoop prijs | N7: Winst
A8: OC | B8: Adv. Thermal Fusion Holograsphic Sight | C8: CYBER WARFARE DIVISION | G8: =SUM(G9:G16) -> 89402 | H8: =IF(I8="","",1) -> 1 | I8: OC | J8: Adv. Thermal Fusion Holograsphic Sight | L8: 89402 | M8: 119800 | N8: =IF(M8="","",M8-L8) -> 30398 | W8: DELTAFORCE production | X8: DELTAFORCE produktie
A9: A | B9: =IFERROR(IF(VLOOKUP($B$8,B_CYBER_ALL,3,FALSE)="","",VLOOKUP($B$8,B_CYBER_ALL,3,FALSE)),"") -> Damaged Thermal Imager | C9: =IF(B9="","",VLOOKUP(B9,A_ITEMS_ALL,11,FALSE)) -> N | E9: =IF(VLOOKUP($B$8,B_CYBER_ALL,2,FALSE)="","",VLOOKUP($B$8,B_CYBER_ALL,2,FALSE)) -> 1 | F9: =IF(B9<>"",IF(C9="N",VLOOKUP(B9,A_ITEMS_ALL,10,FALSE),""),"") -> 50880 | G9: =IF(C9="J","",IF(B9="","",F9*E9)) -> 50880 | H9: =IF(I9="","",MAX($H$8:H8)+1) ->  | N9: =IF(M9="","",M9-L9) ->  | W9: Composition of the products to be produced | X9: Samenstelling van de te produceren produkten
A10: A1 | D10: =_xlfn.IFNA(IF(B9="","",IF(VLOOKUP($B9,A_ITEMS_ALL,3,FALSE)=0,"",VLOOKUP($B9,A_ITEMS_ALL,3,FALSE))),"") ->  | E10: =IF(B9="","",IF(VLOOKUP($B9,A_ITEMS_ALL,4,FALSE)=0,"",VLOOKUP($B9,A_ITEMS_ALL,4,FALSE))) ->  | F10: =_xlfn.IFNA(VLOOKUP(D10,A_ITEMS_ALL,10,FALSE),"") ->  | G10: =IF(F10="","",SUM($F10/_xlfn.IFNA(IF($C9="N","",VLOOKUP($B9,A_ITEMS_ALL,2,FALSE)),""))*$E9) ->  | H10: =IF(I10="","",MAX($H$8:H9)+1) -> 
A11: A2 | D11: =_xlfn.IFNA(IF(B9="","",IF(VLOOKUP($B9,A_ITEMS_ALL,5,FALSE)=0,"",VLOOKUP($B9,A_ITEMS_ALL,5,FALSE))),"") ->  | E11: =IF(B9="","",IF(VLOOKUP($B9,A_ITEMS_ALL,6,FALSE)=0,"",VLOOKUP($B9,A_ITEMS_ALL,6,FALSE))) ->  | F11: =_xlfn.IFNA(VLOOKUP(D11,A_ITEMS_ALL,10,FALSE),"") ->  | G11: =IF(F11="","",SUM($F11/_xlfn.IFNA(IF($C9="N","",VLOOKUP($B9,A_ITEMS_ALL,2,FALSE)),""))*$E9) ->  | H11: =IF(I11="","",MAX($H$8:H10)+1) ->  | W11: Select a type. You can place it anywhere you like. The profit will appear when the sales price is entered. You can specify the path to the images in the Lists worksheet in field B183. | X11: Selecteer een type. Je kunt het plaatsen waar je wilt. De winst verschijnt als de verkoopprijs is ingevuld. Het pad naar de afbeeldingen kun je opgeven in het werkblad Lijsten in veld B183
A12: A3 | D12: =_xlfn.IFNA(IF(B9="","",IF(VLOOKUP($B9,A_ITEMS_ALL,7,FALSE)=0,"",VLOOKUP($B9,A_ITEMS_ALL,7,FALSE))),"") ->  | E12: =IF(B9="","",IF(VLOOKUP($B9,A_ITEMS_ALL,8,FALSE)=0,"",VLOOKUP($B9,A_ITEMS_ALL,8,FALSE))) ->  | F12: =_xlfn.IFNA(VLOOKUP(D12,A_ITEMS_ALL,10,FALSE),"") ->  | G12: =IF(F12="","",SUM($F12/_xlfn.IFNA(IF($C9="N","",VLOOKUP($B9,A_ITEMS_ALL,2,FALSE)),""))*$E9) ->  | H12: =IF(I12="","",MAX($H$8:H11)+1) ->  | W12: Total | X12: Totaal
A13: B | B13: =IFERROR(IF(VLOOKUP($B$8,B_CYBER_ALL,5,FALSE)="","",VLOOKUP($B$8,B_CYBER_ALL,5,FALSE)),"") -> Firtearm Parts | C13: =IF(B13="","",VLOOKUP(B13,A_ITEMS_ALL,11,FALSE)) -> N | E13: =IF(VLOOKUP($B$8,B_CYBER_ALL,4,FALSE)="","",VLOOKUP($B$8,B_CYBER_ALL,4,FALSE)) -> 1 | F13: =IFERROR(VLOOKUP(B13,A_ITEMS_ALL,10,FALSE),"") -> 17654 | G13: =IFERROR(IF(B13="","",F13*E13),"") -> 17654 | H13: =IF(I13="","",MAX($H$8:H12)+1) ->  | W13: Part | X13: Onderdeel
A14: C | B14: =IFERROR(IF(VLOOKUP($B$8,B_CYBER_ALL,7,FALSE)="","",VLOOKUP($B$8,B_CYBER_ALL,7,FALSE)),"") -> Wood Board | C14: =IF(B14="","",VLOOKUP(B14,A_ITEMS_ALL,11,FALSE)) -> N | E14: =IF(VLOOKUP($B$8,B_CYBER_ALL,6,FALSE)="","",VLOOKUP($B$8,B_CYBER_ALL,6,FALSE)) -> 3 | F14: =IFERROR(VLOOKUP(B14,A_ITEMS_ALL,10,FALSE),"") -> 4550 | G14: =IFERROR(IF(B14="","",F14*E14),"") -> 13650 | H14: =IF(I14="","",MAX($H$8:H13)+1) ->  | W14: Product | X14: Product
A15: D | B15: =IFERROR(IF(VLOOKUP($B$8,B_CYBER_ALL,9,FALSE)="","",VLOOKUP($B$8,B_CYBER_ALL,9,FALSE)),"") -> LED Light | C15: =IF(B15="","",VLOOKUP(B15,A_ITEMS_ALL,11,FALSE)) -> N | E15: =IF(VLOOKUP($B$8,B_CYBER_ALL,8,FALSE)="","",VLOOKUP($B$8,B_CYBER_ALL,8,FALSE)) -> 2 | F15: =IFERROR(VLOOKUP(B15,A_ITEMS_ALL,10,FALSE),"") -> 3609 | G15: 7218 | H15: =IF(I15="","",MAX($H$8:H14)+1) ->  | W15: Y/N | X15: J/N
A16: E | B16: =IFERROR(IF(VLOOKUP($B$8,B_CYBER_ALL,11,FALSE)="","",VLOOKUP($B$8,B_CYBER_ALL,11,FALSE)),"") ->  | C16: =IF(B16="","",VLOOKUP(B16,A_ITEMS_ALL,11,FALSE)) ->  | E16: =IFERROR(IF(VLOOKUP($B$8,B_CYBER_ALL,10,FALSE)="","",VLOOKUP($B$8,B_CYBER_ALL,10,FALSE)),"") ->  | F16: =IFERROR(VLOOKUP(B16,A_ITEMS_ALL,10,FALSE),"") ->  | H16: =IF(I16="","",MAX($H$8:H15)+1) ->  | W16: Composed: | X16: Samengesteld uit:
A17: OW | B17: 6.8x51mm Hybrid | C17: WORKBENCH | G17: =SUM(G18:G25) -> 249663.5 | H17: =IF(I17="","",MAX($H$8:H16)+1) -> 2 | I17: OW | J17: 6.8x51mm Hybrid | L17: 249663.5 | M17: 444399 | N17: 194735.5 | W17: Number | X17: Aantal
A18: A | B18: =IFERROR(IF(VLOOKUP($B$17,C_WORKBENCH_ALL,3,FALSE)="","",VLOOKUP($B$17,C_WORKBENCH_ALL,3,FALSE)),"") -> Premium Fuel | C18: =IF(B18="","",VLOOKUP(B18,A_ITEMS_ALL,11,FALSE)) -> J | E18: =IF(VLOOKUP($B$17,C_WORKBENCH_ALL,2,FALSE)="","",VLOOKUP($B$17,C_WORKBENCH_ALL,2,FALSE)) -> 2 | F18: =IF(B18<>"",IF(C18="N",VLOOKUP(B18,A_ITEMS_ALL,10,FALSE),""),"") ->  | G18: =IF(C18="J","",IF(B18="","",F18*E18)) ->  | H18: =IF(I18="","",MAX($H$8:H17)+1) ->  | W18: Cost | X18: Inkoopprijs
A19: A1 | D19: =_xlfn.IFNA(IF(B18="","",IF(VLOOKUP($B18,A_ITEMS_ALL,3,FALSE)=0,"",VLOOKUP($B18,A_ITEMS_ALL,3,FALSE))),"") -> Cutlass | E19: =IF(B18="","",IF(VLOOKUP($B18,A_ITEMS_ALL,4,FALSE)=0,"",VLOOKUP($B18,A_ITEMS_ALL,4,FALSE))) -> 1 | F19: =_xlfn.IFNA(VLOOKUP(D19,A_ITEMS_ALL,10,FALSE),"") -> 23227 | G19: =IF(F19="","",SUM($F19/_xlfn.IFNA(IF($C18="N","",VLOOKUP($B18,A_ITEMS_ALL,2,FALSE)),""))*$E18) -> 11613.5 | H19: =IF(I19="","",MAX($H$8:H18)+1) ->  | W19: Relative purchase price | X19: Relatieve inkoopprijs
A20: A2 | D20: =_xlfn.IFNA(IF(B18="","",IF(VLOOKUP($B18,A_ITEMS_ALL,5,FALSE)=0,"",VLOOKUP($B18,A_ITEMS_ALL,5,FALSE))),"") -> Boxed Drip Coffee | E20: =IF(B18="","",IF(VLOOKUP($B18,A_ITEMS_ALL,6,FALSE)=0,"",VLOOKUP($B18,A_ITEMS_ALL,6,FALSE))) -> 1 | F20: =_xlfn.IFNA(VLOOKUP(D20,A_ITEMS_ALL,10,FALSE),"") -> 219162 | G20: =IF(F20="","",SUM($F20/_xlfn.IFNA(IF($C18="N","",VLOOKUP($B18,A_ITEMS_ALL,2,FALSE)),""))*$E18) -> 109581 | H20: =IF(I20="","",MAX($H$8:H19)+1) ->  | W20: Type | X20: Type
A21: A3 | D21: =_xlfn.IFNA(IF(B18="","",IF(VLOOKUP($B18,A_ITEMS_ALL,7,FALSE)=0,"",VLOOKUP($B18,A_ITEMS_ALL,7,FALSE))),"") ->  | E21: =IF(B18="","",IF(VLOOKUP($B18,A_ITEMS_ALL,8,FALSE)=0,"",VLOOKUP($B18,A_ITEMS_ALL,8,FALSE))) ->  | F21: =_xlfn.IFNA(VLOOKUP(D21,A_ITEMS_ALL,10,FALSE),"") ->  | G21: =IF(F21="","",SUM($F21/_xlfn.IFNA(IF($C18="N","",VLOOKUP($B18,A_ITEMS_ALL,2,FALSE)),""))*$E18) ->  | H21: =IF(I21="","",MAX($H$8:H20)+1) ->  | W21: Product | X21: Produkt
A22: B | B22: =IFERROR(IF(VLOOKUP($B$17,C_WORKBENCH_ALL,5,FALSE)="","",VLOOKUP($B$17,C_WORKBENCH_ALL,5,FALSE)),"") -> Basic Ammo Production Parts | C22: =IF(B22="","",VLOOKUP(B22,A_ITEMS_ALL,11,FALSE)) -> N | E22: =IF(VLOOKUP($B$17,C_WORKBENCH_ALL,4,FALSE)="","",VLOOKUP($B$17,C_WORKBENCH_ALL,4,FALSE)) -> 3 | F22: =IFERROR(VLOOKUP(B22,A_ITEMS_ALL,10,FALSE),"") -> 25918 | G22: =IFERROR(IF(B22="","",F22*E22),"") -> 77754 | H22: =IF(I22="","",MAX($H$8:H21)+1) ->  | W22: Purchase price | X22: Inkoop prijs
A23: C | B23: =IFERROR(IF(VLOOKUP($B$17,C_WORKBENCH_ALL,7,FALSE)="","",VLOOKUP($B$17,C_WORKBENCH_ALL,7,FALSE)),"") -> Gunpowder | C23: =IF(B23="","",VLOOKUP(B23,A_ITEMS_ALL,11,FALSE)) -> N | E23: =IF(VLOOKUP($B$17,C_WORKBENCH_ALL,6,FALSE)="","",VLOOKUP($B$17,C_WORKBENCH_ALL,6,FALSE)) -> 3 | F23: =IFERROR(VLOOKUP(B23,A_ITEMS_ALL,10,FALSE),"") -> 16905 | G23: =IFERROR(IF(B23="","",F23*E23),"") -> 50715 | H23: =IF(I23="","",MAX($H$8:H22)+1) ->  | W23: Sale Price | X23: Verkoop prijs
A24: D | B24: =IFERROR(IF(VLOOKUP($B$17,C_WORKBENCH_ALL,9,FALSE)="","",VLOOKUP($B$17,C_WORKBENCH_ALL,9,FALSE)),"") ->  | C24: =IF(B24="","",VLOOKUP(B24,A_ITEMS_ALL,11,FALSE)) ->  | E24: =IF(VLOOKUP($B$17,C_WORKBENCH_ALL,8,FALSE)="","",VLOOKUP($B$17,C_WORKBENCH_ALL,8,FALSE)) ->  | F24: =IFERROR(VLOOKUP(B24,A_ITEMS_ALL,10,FALSE),"") ->  | H24: =IF(I24="","",MAX($H$8:H23)+1) ->  | W24: Profit | X24: Winst
A25: E | B25: =IFERROR(IF(VLOOKUP($B$17,C_WORKBENCH_ALL,11,FALSE)="","",VLOOKUP($B$17,C_WORKBENCH_ALL,11,FALSE)),"") ->  | C25: =IF(B25="","",VLOOKUP(B25,A_ITEMS_ALL,11,FALSE)) ->  | E25: =IFERROR(IF(VLOOKUP($B$17,C_WORKBENCH_ALL,10,FALSE)="","",VLOOKUP($B$17,C_WORKBENCH_ALL,10,FALSE)),"") ->  | F25: =IFERROR(VLOOKUP(B25,A_ITEMS_ALL,10,FALSE),"") ->  | H25: =IF(I25="","",MAX($H$8:H24)+1) ->  | W25: Author: | X25: Auteur:
A26: OP | B26: Premium Vest Repair Combo | C26: PHARMACY | G26: =SUM(G27:G34) -> 528794 | H26: =IF(I26="","",MAX($H$8:H25)+1) -> 3 | I26: OP | J26: Premium Vest Repair Combo | L26: 528794 | M26: 550800 | N26: 22006 | W26: Date: | X26: Datum:
A27: A | B27: =IFERROR(IF(VLOOKUP($B$26,D_PHARMACY_ALL,3,FALSE)="","",VLOOKUP($B$26,D_PHARMACY_ALL,3,FALSE)),"") -> Mobile cable | C27: =IF(B27="","",VLOOKUP(B27,A_ITEMS_ALL,11,FALSE)) -> N | E27: =IF(VLOOKUP($B$26,D_PHARMACY_ALL,2,FALSE)="","",VLOOKUP($B$26,D_PHARMACY_ALL,2,FALSE)) -> 1 | F27: =IF(B27<>"",IF(C27="N",VLOOKUP(B27,A_ITEMS_ALL,10,FALSE),""),"") -> 469791 | G27: =IF(C27="J","",IF(B27="","",F27*E27)) -> 469791 | H27: =IF(I27="","",MAX($H$8:H26)+1) ->  | W27: Email: | X27: E-mail:
A28: A1 | D28: =_xlfn.IFNA(IF(B27="","",IF(VLOOKUP($B27,A_ITEMS_ALL,3,FALSE)=0,"",VLOOKUP($B27,A_ITEMS_ALL,3,FALSE))),"") ->  | E28: =IF(B27="","",IF(VLOOKUP($B27,A_ITEMS_ALL,4,FALSE)=0,"",VLOOKUP($B27,A_ITEMS_ALL,4,FALSE))) ->  | F28: =_xlfn.IFNA(VLOOKUP(D28,A_ITEMS_ALL,10,FALSE),"") ->  | G28: =IF(F28="","",SUM($F28/_xlfn.IFNA(IF($C27="N","",VLOOKUP($B27,A_ITEMS_ALL,2,FALSE)),""))*$E27) ->  | H28: =IF(I28="","",MAX($H$8:H27)+1) ->  | W28: Normal display | X28: Normale weergave
A29: A2 | D29: =_xlfn.IFNA(IF(B27="","",IF(VLOOKUP($B27,A_ITEMS_ALL,5,FALSE)=0,"",VLOOKUP($B27,A_ITEMS_ALL,5,FALSE))),"") ->  | E29: =IF(B27="","",IF(VLOOKUP($B27,A_ITEMS_ALL,6,FALSE)=0,"",VLOOKUP($B27,A_ITEMS_ALL,6,FALSE))) ->  | F29: =_xlfn.IFNA(VLOOKUP(D29,A_ITEMS_ALL,10,FALSE),"") ->  | G29: =IF(F29="","",SUM($F29/_xlfn.IFNA(IF($C27="N","",VLOOKUP($B27,A_ITEMS_ALL,2,FALSE)),""))*$E27) ->  | H29: =IF(I29="","",MAX($H$8:H28)+1) ->  | W29: Full screen | X29: Volledig scherm
A30: A3 | D30: =_xlfn.IFNA(IF(B27="","",IF(VLOOKUP($B27,A_ITEMS_ALL,7,FALSE)=0,"",VLOOKUP($B27,A_ITEMS_ALL,7,FALSE))),"") ->  | E30: =IF(B27="","",IF(VLOOKUP($B27,A_ITEMS_ALL,8,FALSE)=0,"",VLOOKUP($B27,A_ITEMS_ALL,8,FALSE))) ->  | F30: =_xlfn.IFNA(VLOOKUP(D30,A_ITEMS_ALL,10,FALSE),"") ->  | G30: =IF(F30="","",SUM($F30/_xlfn.IFNA(IF($C27="N","",VLOOKUP($B27,A_ITEMS_ALL,2,FALSE)),""))*$E27) ->  | H30: =IF(I30="","",MAX($H$8:H29)+1) ->  | W30: Dutch | X30: Nederlands
A31: B | B31: =IFERROR(IF(VLOOKUP($B$26,D_PHARMACY_ALL,5,FALSE)="","",VLOOKUP($B$26,D_PHARMACY_ALL,5,FALSE)),"") -> High-Power Crusher | C31: =IF(B31="","",VLOOKUP(B31,A_ITEMS_ALL,11,FALSE)) -> N | E31: =IF(VLOOKUP($B$26,D_PHARMACY_ALL,4,FALSE)="","",VLOOKUP($B$26,D_PHARMACY_ALL,4,FALSE)) -> 1 | F31: =IFERROR(VLOOKUP(B31,A_ITEMS_ALL,10,FALSE),"") -> 31558 | G31: =IFERROR(IF(B31="","",F31*E31),"") -> 31558 | H31: =IF(I31="","",MAX($H$8:H30)+1) ->  | W31: English | X31: Engels
A32: C | B32: =IFERROR(IF(VLOOKUP($B$26,D_PHARMACY_ALL,7,FALSE)="","",VLOOKUP($B$26,D_PHARMACY_ALL,7,FALSE)),"") -> Aramid Fiber | C32: =IF(B32="","",VLOOKUP(B32,A_ITEMS_ALL,11,FALSE)) -> N | E32: =IF(VLOOKUP($B$26,D_PHARMACY_ALL,6,FALSE)="","",VLOOKUP($B$26,D_PHARMACY_ALL,6,FALSE)) -> 1 | F32: =IFERROR(VLOOKUP(B32,A_ITEMS_ALL,10,FALSE),"") -> 22895 | G32: =IFERROR(IF(B32="","",F32*E32),"") -> 22895 | H32: =IF(I32="","",MAX($H$8:H31)+1) ->  | W32: Unlocked | X32: Ontgrendeld
A33: D | B33: =IFERROR(IF(VLOOKUP($B$26,D_PHARMACY_ALL,9,FALSE)="","",VLOOKUP($B$26,D_PHARMACY_ALL,9,FALSE)),"") -> Wood Board | C33: =IF(B33="","",VLOOKUP(B33,A_ITEMS_ALL,11,FALSE)) -> N | E33: =IF(VLOOKUP($B$26,D_PHARMACY_ALL,8,FALSE)="","",VLOOKUP($B$26,D_PHARMACY_ALL,8,FALSE)) -> 1 | F33: =IFERROR(VLOOKUP(B33,A_ITEMS_ALL,10,FALSE),"") -> 4550 | G33: 4550 | H33: =IF(I33="","",MAX($H$8:H32)+1) ->  | W33: Secured | X33: Beveiligd
A34: E | B34: =IFERROR(IF(VLOOKUP($B$26,D_PHARMACY_ALL,11,FALSE)="","",VLOOKUP($B$26,D_PHARMACY_ALL,11,FALSE)),"") ->  | C34: =IF(B34="","",VLOOKUP(B34,A_ITEMS_ALL,11,FALSE)) ->  | E34: =IFERROR(IF(VLOOKUP($B$26,D_PHARMACY_ALL,10,FALSE)="","",VLOOKUP($B$26,D_PHARMACY_ALL,10,FALSE)),"") ->  | F34: =IFERROR(VLOOKUP(B34,A_ITEMS_ALL,10,FALSE),"") ->  | H34: =IF(I34="","",MAX($H$8:H33)+1) -> 
A35: OA | B35: Heavy Assault Vest | C35: ARMOR BENCH | G35: =SUM(G36:G43) -> 200875 | H35: =IF(I35="","",MAX($H$8:H34)+1) -> 4 | I35: OA | J35: Heavy Assault Vest | L35: 200875 | M35: 322200 | N35: 121325
A36: A | B36: =IFERROR(IF(VLOOKUP($B$35,E_ARMOR_ALL,3,FALSE)="","",VLOOKUP($B$35,E_ARMOR_ALL,3,FALSE)),"") -> Titantium Alloy | C36: =IF(B36="","",VLOOKUP(B36,A_ITEMS_ALL,11,FALSE)) -> J | E36: =IF(VLOOKUP($B$35,E_ARMOR_ALL,2,FALSE)="","",VLOOKUP($B$35,E_ARMOR_ALL,2,FALSE)) -> 3 | F36: =IF(B36<>"",IF(C36="N",VLOOKUP(B36,A_ITEMS_ALL,10,FALSE),""),"") ->  | G36: =IF(C36="J","",IF(B36="","",F36*E36)) ->  | H36: =IF(I36="","",MAX($H$8:H35)+1) -> 
A37: A1 | D37: =_xlfn.IFNA(IF(B36="","",IF(VLOOKUP($B36,A_ITEMS_ALL,3,FALSE)=0,"",VLOOKUP($B36,A_ITEMS_ALL,3,FALSE))),"") -> Programmable processor | E37: =IF(B36="","",IF(VLOOKUP($B36,A_ITEMS_ALL,4,FALSE)=0,"",VLOOKUP($B36,A_ITEMS_ALL,4,FALSE))) -> 1 | F37: =_xlfn.IFNA(VLOOKUP(D37,A_ITEMS_ALL,10,FALSE),"") -> 169824 | G37: =IF(F37="","",SUM($F37/_xlfn.IFNA(IF($C36="N","",VLOOKUP($B36,A_ITEMS_ALL,2,FALSE)),""))*$E36) -> 127368 | H37: =IF(I37="","",MAX($H$8:H36)+1) -> 
A38: A2 | D38: =_xlfn.IFNA(IF(B36="","",IF(VLOOKUP($B36,A_ITEMS_ALL,5,FALSE)=0,"",VLOOKUP($B36,A_ITEMS_ALL,5,FALSE))),"") -> Orange Energy Gel | E38: =IF(B36="","",IF(VLOOKUP($B36,A_ITEMS_ALL,6,FALSE)=0,"",VLOOKUP($B36,A_ITEMS_ALL,6,FALSE))) -> 1 | F38: =_xlfn.IFNA(VLOOKUP(D38,A_ITEMS_ALL,10,FALSE),"") -> 18756 | G38: =IF(F38="","",SUM($F38/_xlfn.IFNA(IF($C36="N","",VLOOKUP($B36,A_ITEMS_ALL,2,FALSE)),""))*$E36) -> 14067 | H38: =IF(I38="","",MAX($H$8:H37)+1) -> 
A39: A3 | D39: =_xlfn.IFNA(IF(B36="","",IF(VLOOKUP($B36,A_ITEMS_ALL,7,FALSE)=0,"",VLOOKUP($B36,A_ITEMS_ALL,7,FALSE))),"") ->  | E39: =IF(B36="","",IF(VLOOKUP($B36,A_ITEMS_ALL,8,FALSE)=0,"",VLOOKUP($B36,A_ITEMS_ALL,8,FALSE))) ->  | F39: =_xlfn.IFNA(VLOOKUP(D39,A_ITEMS_ALL,10,FALSE),"") ->  | G39: =IF(F39="","",SUM($F39/_xlfn.IFNA(IF($C36="N","",VLOOKUP($B36,A_ITEMS_ALL,2,FALSE)),""))*$E36) ->  | H39: =IF(I39="","",MAX($H$8:H38)+1) -> 
A40: B | B40: =IFERROR(IF(VLOOKUP($B$35,E_ARMOR_ALL,5,FALSE)="","",VLOOKUP($B$35,E_ARMOR_ALL,5,FALSE)),"") -> Aramid Fiber | C40: =IF(B40="","",VLOOKUP(B40,A_ITEMS_ALL,11,FALSE)) -> N | E40: =IF(VLOOKUP($B$35,E_ARMOR_ALL,4,FALSE)="","",VLOOKUP($B$35,E_ARMOR_ALL,4,FALSE)) -> 2 | F40: =IFERROR(VLOOKUP(B40,A_ITEMS_ALL,10,FALSE),"") -> 22895 | G40: =IFERROR(IF(B40="","",F40*E40),"") -> 45790 | H40: =IF(I40="","",MAX($H$8:H39)+1) -> 
A41: C | B41: =IFERROR(IF(VLOOKUP($B$35,E_ARMOR_ALL,7,FALSE)="","",VLOOKUP($B$35,E_ARMOR_ALL,7,FALSE)),"") -> Wood Board | C41: =IF(B41="","",VLOOKUP(B41,A_ITEMS_ALL,11,FALSE)) -> N | E41: =IF(VLOOKUP($B$35,E_ARMOR_ALL,6,FALSE)="","",VLOOKUP($B$35,E_ARMOR_ALL,6,FALSE)) -> 3 | F41: =IFERROR(VLOOKUP(B41,A_ITEMS_ALL,10,FALSE),"") -> 4550 | G41: =IFERROR(IF(B41="","",F41*E41),"") -> 13650 | H41: =IF(I41="","",MAX($H$8:H40)+1) -> 
A42: D | B42: =IFERROR(IF(VLOOKUP($B$35,E_ARMOR_ALL,9,FALSE)="","",VLOOKUP($B$35,E_ARMOR_ALL,9,FALSE)),"") ->  | C42: =IF(B42="","",VLOOKUP(B42,A_ITEMS_ALL,11,FALSE)) ->  | E42: =IF(VLOOKUP($B$35,E_ARMOR_ALL,8,FALSE)="","",VLOOKUP($B$35,E_ARMOR_ALL,8,FALSE)) ->  | F42: =IFERROR(VLOOKUP(B42,A_ITEMS_ALL,10,FALSE),"") ->  | H42: =IF(I42="","",MAX($H$8:H41)+1) -> 
A43: E | B43: =IFERROR(IF(VLOOKUP($B$35,E_ARMOR_ALL,11,FALSE)="","",VLOOKUP($B$35,E_ARMOR_ALL,11,FALSE)),"") ->  | C43: =IF(B43="","",VLOOKUP(B43,A_ITEMS_ALL,11,FALSE)) ->  | E43: =IFERROR(IF(VLOOKUP($B$35,E_ARMOR_ALL,10,FALSE)="","",VLOOKUP($B$35,E_ARMOR_ALL,10,FALSE)),"") ->  | F43: =IFERROR(VLOOKUP(B43,A_ITEMS_ALL,10,FALSE),"") ->  | H43: =IF(I43="","",MAX($H$8:H42)+1) -> 
B44: Total Inkoop | G44: =SUM(G35+G26+G17+G8) -> 1068734.5 | H44: =IF(I44="","",MAX($H$8:H43)+1) -> 
A45: Author: | B45: Ad Tiegelaar | H45: =IF(I45="","",MAX($H$8:H44)+1) -> 
A46: Email: | B46: 2025-08-02 | H46: =IF(I46="","",MAX($H$8:H45)+1) -> 
A47: E-mail: | B47: admin@tiegelaar.com | H47: =IF(I47="","",MAX($H$8:H46)+1) -> 
A77: Auteur:
A78: E-mail:

Sheet ITEMS
A1: ITEMS | B1: ## | C1: 1e | D1: # | E1: 2e | F1: # | G1: 3e | H1: # | I1: ITEMS | J1: Price | K1: Constructed Y/N
A2: Boxed Drip Coffee | I2: =A2 -> Boxed Drip Coffee | J2: 219162 | K2: N
A3: Special Steel | I3: =A3 -> Special Steel | J3: 56337 | K3: N
A4: Programmable Processor | I4: Programmable Processor | J4: 169824 | K4: N
A5: Polyethylene Fiber | I5: Polyethylene Fiber | J5: 83697 | K5: N
A6: Aramid Fiber | I6: Aramid Fiber | J6: 22895 | K6: N
A7: High-Power Crusher | I7: High-Power Crusher | J7: 31558 | K7: N
A8: Cutlass | I8: Cutlass | J8: 23227 | K8: N
A9: Hammer Drill | I9: Hammer Drill | J9: 20090 | K9: N
A10: High-precision Digital Caliper | I10: High-precision Digital Caliper | J10: 16898 | K10: N
A11: Basic Fuel | I11: Basic Fuel | J11: 16912 | K11: N
A12: Basic Ammo Production Parts | I12: Basic Ammo Production Parts | J12: 25918 | K12: N
A13: Gunpowder | I13: Gunpowder | J13: 16905 | K13: N
A14: Orange Energy Gel | I14: Orange Energy Gel | J14: 18756 | K14: N
A15: Angle Grinder | I15: Angle Grinder | J15: 4581 | K15: N
A16: Memory Card | I16: Memory Card | J16: 7561 | K16: N
A17: Breaching Hammer | I17: Breaching Hammer | J17: 4198 | K17: N
A18: Audio Player | I18: Audio Player | J18: 8723 | K18: N
A19: Handsaw | I19: Handsaw | J19: 11606 | K19: N
A20: Seasoning Set | I20: Seasoning Set | J20: 7664 | K20: N
A21: Wood Board | I21: Wood Board | J21: 4550 | K21: N
A22: LED Light | I22: LED Light | J22: 3609 | K22: N
A23: Duct Tape | I23: Duct Tape | J23: 1276 | K23: N
A24: Manometer | I24: Manometer | J24: 4304 | K24: N
A25: Mobile cable | I25: Mobile cable | J25: 469791 | K25: N
A26: Cordless Portable Drill | I26: Cordless Portable Drill | J26: 28185 | K26: N
A27: Damaged Thermal Imager | I27: Damaged Thermal Imager | J27: 50880 | K27: N
A28: Lens | I28: Lens | J28: 112396 | K28: N
A29: Shiny Pirate Gold Coin | I29: Shiny Pirate Gold Coin | J29: 58234 | K29: N
A30: Premium Coffee beans | I30: Premium Coffee beans | K30: N
A31: Ceramic Amor | I31: Ceramic Amor | J31: 36603 | K31: N
A32: Engine Oil | I32: Engine Oil | J32: 22975 | K32: N
A33: Polymer Fabric | I33: Polymer Fabric | J33: 16369 | K33: N
A34: Firtearm Parts | I34: Firtearm Parts | J34: 17654 | K34: N
A35: Intermediate Ammo Production Parts | B35: 4 | C35: E-Type Canister | D35: 1 | E35: Hammer Drill | F35: 1 | I35: Intermediate Ammo Production Parts | K35: J
A36: Titantium Alloy | B36: 4 | C36: Programmable processor | D36: 1 | E36: Orange Energy Gel | F36: 1 | I36: Titantium Alloy | K36: J
A37: Premium Fuel | B37: 4 | C37: Cutlass | D37: 1 | E37: Boxed Drip Coffee | F37: 1 | I37: Premium Fuel | K37: J
A38: Mechanical Worker Bee Model | B38: 4 | C38: Shiny Pirate Gold Coin | D38: 1 | E38: Premium Coffee beans | F38: 1 | I38: Mechanical Worker Bee Model | K38: J

Sheet CYBER WARFARE DIVISION
A1: CYBER WARFARE DIVISION
A2: White Phosphor Thermal Scope | B2: 2 | C2: Damaged Thermal Imager | D2: 3 | E2: Firtearm Parts | F2: 4 | G2: High-precision Digital Caliper | H2: 08-28-2025
A3: Sandstorm Vertical Compensator | B3: 1 | C3: Firtearm Parts | D3: 1 | E3: Handsaw | F3: 2 | G3: Wood Board
A4: Adv. Thermal Fusion Holograsphic Sight | B4: 1 | C4: Damaged Thermal Imager | D4: 1 | E4: Firtearm Parts | F4: 3 | G4: Wood Board | H4: 2 | I4: LED Light

Sheet WORKBENCH
A1: WORKBENCH
A2: 7.62x51mm M62 | B2: 3 | C2: Premium Fuel | D2: 1 | E2: Basic Ammo Production Parts | F2: 1 | G2: Gunpowder | H2: 3 | I2: Basic Fuel
A3: 5.56x45mm M995 | B3: 2 | C3: Premium Fuel | D3: 2 | E3: Basic Ammo Production Parts | F3: 2 | G3: Angle Grinder
A4: 6.8x51mm Hybrid | B4: 2 | C4: Premium Fuel | D4: 3 | E4: Basic Ammo Production Parts | F4: 3 | G4: Gunpowder
A5: .357 Magnum Tier 4 (120 stuks)
A6: .45 ACP Tier 4 (120 stuks)
A7: .50 AE Tier 4 (120 stuks)
A8: 12 Gauge Slug Tier 4 (120 stuks)
A9: 12 Gauge Dragon Tier 4 (120 stuks)
A10: 12.7x55mm Tier 5 (120 stuks)
A11: 12.7x55mm PD12 Tier 4 (120 stuks)
A12: 12.7x55mm PS12 Tier 4 (120 stuks)
A13: 5.45x39mm Tier 5 (120 stuks)
A14: 5.45x39mm Tier 4 (120 stuks)
A15: 5.56x45mm Tier 4 (120 stuks)
A16: 5.7x28mm Tier 5 (120 stuks)
A17: 5.7x28mm Tier 4 (120 stuks)
A18: 5.8x42mm Tier 5 (120 stuks)
A19: 5.8x42mm Tier 4 (120 stuks)
A20: 6.8x51mm Tier 4 (120 stuks)
A21: 7.62x39mm Tier 5 (120 stuks)
A22: 7.62x39mm Tier 4 (120 stuks)
A23: 7.62x51mm Tier 4 (120 stuks)
A24: 7.62x54mm Tier 5 (120 stuks)
A25: 7.62x54mm Tier 4 (120 stuks)
A26: 9x19mm Tier 4 (120 stuks)
A27: 9x39mm Tier 5 (120 stuks)
A28: 9x39mm Tier 4 (120 stuks)
A29: 4.6x30mm Tier 5 (120 stuks)
A30: 4.6x30mm Tier 4 (120 stuks)
A31: .300 BLK Tier 5 (120 stuks)
A32: .300 BLK Tier 4 (120 stuks)
A33: Arrow Tier 4 (120 stuks)
A34: Arrow Tier 5 (120 stuks)

Sheet PHARMACY
A1: PHARMACY
A2: Premium Vest Repair Combo | B2: 1 | C2: Mobile cable | D2: 1 | E2: High-Power Crusher | F2: 1 | G2: Aramid Fiber | H2: 1 | I2: Wood Board
A3: Precision Vest Repair Kit | B3: 3 | C3: Special Steel | D3: 1 | E3: Cordless Portable Drill
A4: Premium Helmet Repair Combo | B4: 1 | C4: Mobile cable | D4: 1 | E4: Cordless Portable Drill | F4: 1 | G4: Aramid Fiber | H4: 1 | I4: Wood Board

Sheet ARMOR BENCH
A1: ARMOR BENCH
A2: FS Composite Vest | B2: 3 | C2: Titantium Alloy | D2: 2 | E2: High-Power Crusher | F2: 2 | G2: Wood Board
A3: Heavy Assault Vest | B3: 3 | C3: Titantium Alloy | D3: 2 | E3: Aramid Fiber | F3: 3 | G3: Wood Board
A4: DICH-1 Tactical Helmet | B4: 2 | C4: Titantium Alloy | D4: 1 | E4: High-Power Crusher | F4: 1 | G4: Wood Board
A5: GN Heavy NV Helmet | B5: 1 | C5: Lens | D5: 2 | E5: High-Power Crusher | F5: 1 | G5: Aramid Fiber | H5: 3 | I5: Wood Board
A6: Elite Vest Tier5
A7: Hvk-2 Vest Tier5
A8: HMP Special Ops Vest Tier4
A9: Assault Vest Tier4
A10: DT-AVS Vest Tier4
A11: MK-2 Tactical Vest Tier4
A12: DRC Advanced Chest Rig Tier4
A13: GIR Field Rig Tier4
A14: Assault Tactical Vest Rig Tier4
A15: Raider Tactical Vest Rig Tier4
A16: Mask-1 Iron Helmet Tier5
A17: H09 Anti-Riot Helmet Tier5
A18: GN Heavy Helmet Tier5
A19: GN Endurance Heavy NV Helmet Tier5
A20: DICH Training Helmet Tier4
A21: D6 Tactical Helmet Tier4
A22: GT1 Tactical Helmet Tier4
A23: MHS Tactical Helmet Tier4
A24: ALS Load System Bag Tier5
A25: HLS-2 Heavy Backpack Bag Tier5
A26: D3 Tactical Climbing Bag Tier5
A27: GT5 Field Backpack Bag Tier5
A28: MAP Recon Backpack Bag Tier4
A29: Field Hiking Backpack Bag Tier4
A30: D2 Tactical Climbing Bag Tier4
A31: GT1 Outdoor Climbing Bag Tier4
A32: Survival Tactical Backpack Bag Tier4

Sheet VARIABLES
A1: Variabelen
A2: imgPath | B2: \\SINAAD-DS\Algemeen\Ad\Arma Reforger - Delta Force\DELTAFORCE_Afbeeldingen\
A4: DELTAFORCE production | B4: DELTAFORCE produktie
A5: Composition of the products to be produced | B5: Samenstelling van de te produceren produkten
A7: Select a type. You can place it anywhere you like. The profit will appear when the sales price is entered. You can specify the path to the images in the Lists worksheet in field B183. | B7: Selecteer een type. Je kunt het plaatsen waar je wilt. De winst verschijnt als de verkoopprijs is ingevuld. Het pad naar de afbeeldingen kun je opgeven in het werkblad Lijsten in veld B183
A8: Total | B8: Totaal
A9: Part | B9: Onderdeel
A10: Product | B10: Product
A11: Y/N | B11: J/N
A12: Composed: | B12: Samengesteld uit:
A13: Number | B13: Aantal
A14: Cost | B14: Inkoopprijs
A15: Relative purchase price | B15: Relatieve inkoopprijs
A16: Type | B16: Type
A17: Product | B17: Produkt
A18: Purchase price | B18: Inkoop prijs
A19: Sale Price | B19: Verkoop prijs
A20: Profit | B20: Winst
A21: Author: | B21: Auteur:
A22: Date: | B22: Datum:
A23: Email: | B23: E-mail:
A24: Normal display | B24: Normale weergave
A25: Full screen | B25: Volledig scherm
A26: Dutch | B26: Nederlands
A27: English | B27: Engels
A28: Unlocked | B28: Ontgrendeld
A29: Secured | B29: Beveiligd
